Cogmind - Beta 16 @@@ ROGUE MODE // 2025.12.28 @ 21:59:56 Player: tanukistars115 Result: Destroyed by D-53 Grenadier with Mini Grenade Launcher Performance ------------- Evolutions (1) 500 Regions Visited (3) 600 Robots Destroyed (45) 225 Value Destroyed (765) 765 Prototype IDs (1) 20 Alien Tech Used (0) 0 Bonus (16) 16 TOTAL SCORE: 2126 Bonus ------- High Alert Combat Kills 16 Cogmind --------- Core Integrity 0/400 Matter 464/500 Energy 100/100 System Corruption 0% Temperature Warning (384) Movement Core (250) Ox4 Location -9/Mines Parts ------- > --- POWER (1) -------- (None) > --- PROPULSION (2) --- (None) > --- UTILITY (3) ------ Medium Storage Unit High-capacity Matter Pod Targeting Computer > --- WEAPON (3) ------- (None) > --- INVENTORY (10) --- Aluminum Leg Aluminum Leg Small Storage Unit Spread Laser Spread Laser Advanced Beam Cannon Assault Rifle Peak State ------------ > --- POWER ------------ Improved Ion Engine > --- PROPULSION ------- Aluminum Leg Aluminum Leg > --- UTILITY ---------- Small Storage Unit High-capacity Matter Pod Targeting Computer > --- WEAPON ----------- Advanced Beam Cannon Advanced Beam Cannon Rocket Launcher > --- INVENTORY -------- Medium Storage Unit EM Pulse Gun Spread Laser Spread Laser Advanced Beam Cannon Assault Rifle [Rating: 16] Favorites ----------- Power Improved Ion Engine Engine Improved Ion Engine Propulsion Aluminum Leg Leg Aluminum Leg Utility Targeting Computer Storage High-capacity Matter Pod Processor Targeting Computer Weapon Advanced Beam Cannon Energy Gun EM Pulse Gun Energy Cannon Advanced Beam Cannon Ballistic Gun Assault Rifle Launcher Rocket Launcher Build | -11 -10 -9 -9 ------- Run | Yrd Mat Mat Min Slots Evolved 2 | . . 2 . Power . | . . . . Propulsion . | . . . . Utility 1 | . . 1 . Weapon 1 | . . 1 . Parts Attached 19 | 6 2 11 . Power 2 | 1 . 1 . Engine 2 | 1 . 1 . Core . | . . . . Reactor . | . . . . Propulsion 4 | 2 . 2 . Treads . | . . . . Leg 4 | 2 . 2 . Wheel . | . . . . Hover . | . . . . Flight . | . . . . Utility 4 | . 2 2 . Device . | . . . . Storage 3 | . 1 2 . Processor 1 | . 1 . . Hackware . | . . . . Protection . | . . . . Artifact . | . . . . Weapon 9 | 3 . 6 . Energy Gun 5 | 2 . 3 . Energy Cannon 2 | . . 2 . Ballistic Gun 1 | 1 . . . Ballistic Cannon . | . . . . Launcher 1 | . . 1 . Special Weapon . | . . . . Impact Weapon . | . . . . Slashing Weapon . | . . . . Piercing Weapon . | . . . . Special Melee Weapon . | . . . . Unidentified Prototypes 1 | . . 1 . Parts Lost 9 | . . 3 6 Power 1 | . . . 1 Propulsion 2 | . . . 2 Utility . | . . . . Weapon 6 | . . 3 3 Highest Loss Streak 6 | . . 2 6 To Critical Strikes . | . . . . Average Backups 3 | 1 1 3 7 Power . | . . . . Propulsion . | . . . 2 Utility . | . . . 1 Weapon 3 | . 1 3 4 Tool/Special . | . . . . Unused Backups 2 | . . . 2 Power . | . . . . Propulsion . | . . . . Utility . | . . . . Weapon 2 | . . . 2 Tool/Special . | . . . . Average Slot Usage (%) 96 | . 91 96 98 Engine 11 | . 14 11 10 Leg 22 | . 28 22 21 Storage 18 | . 14 19 22 Processor 10 | . 5 11 11 Energy Gun 8 | . 14 9 . Energy Cannon 12 | . . 13 22 Ballistic Gun 4 | . 14 2 . Launcher 7 | . . 7 11 Peak Build Rating 16 | 5 7 16 16 Average Rating 12 | 3 6 13 15 On Entrance 7 | . 5 7 16 Avg Prop Armor Cover (%) . | . . . . Naked Turns . | . . . . Heaviest Build 33 | 9 14 33 33 Greatest Support 20 | 20 20 20 20 Greatest Overweight (x) 4 | 1 . 1 4 Average Overweight (x) . | . . . 1 Largest Inventory Capacity 10 | 5 8 10 10 Average Capacity 8 | 5 8 8 10 Most Carried 7 | 3 3 7 7 Average Carried 3 | 1 1 3 7 Final Capacity 10 | 5 8 10 10 Final Carried 7 | 2 2 7 7 Class Distribution -------------------- 80% | Gunner 19% | Mutant Dominant Class ---------------- Mutant | -10/Materials Gunner | -9/Materials Gunner | -9/Mines Resources | -11 -10 -9 -9 ----------- Run | Yrd Mat Mat Min Matter Collected 798 | 260 40 498 . Remotely . | . . . . Salvage Created 1048 | . 149 808 91 Parts 95 | . 13 75 7 Haulers Intercepted 2 | . . 2 . Recyclers Shooed 4 | . 1 3 . Parts Field Recycled . | . . . . Retrieved Matter . | . . . . Parts Self-Destructed . | . . . . Prevented . | . . . . Parts Restored . | . . . . Kills | -11 -10 -9 -9 ------- Run | Yrd Mat Mat Min Combat Hostiles Destroyed 30 | . 5 24 1 Guns 12 | . 2 10 . Cannons 7 | . . 6 1 AOE 11 | . 3 8 . Classes Destroyed 10 | . 2 7 1 Worker 2 | . . 2 . Builder 5 | . . 5 . Tunneler 2 | . . 1 1 Hauler 2 | . . 2 . Recycler 2 | . . 1 1 Watcher 3 | . . 3 . Swarmer 18 | . 2 16 . Grunt 5 | . 3 2 . Sentry 6 | . . 6 . Assembled 1 | . . . 1 Best Kill Streak 8 | . 5 8 3 Combat Bots Only 5 | . 5 5 1 Max Kills in Single Turn 6 | . 2 6 1 Gunslinging . | . . . . Exploded 3 | . 2 3 . Melee . | . . . . Uniques/NPCs Destroyed . | . . . . Combat | -11 -10 -9 -9 -------- Run | Yrd Mat Mat Min Hostile Shots Fired 110 | . 12 75 23 Missed 30 | . 6 21 3 Hits 80 | . 6 54 20 Projectile 80 | . 6 54 20 AOE 19 | . . . 19 Damage Taken 1550 | . 57 756 737 Core 432 | . 23 122 287 Absorbed by Shields . | . . . . Core Remaining (%) 95 | 100 90 . . Volleys Fired 55 | . 8 40 7 Largest 3 | . 2 3 3 Hottest 169 | . 60 169 169 Shots Fired 150 | . 16 114 20 Gun 89 | . 16 73 . Cannon 41 | . . 27 14 Launcher 20 | . . 14 6 Special . | . . . . Kinetic 20 | . 8 12 . Thermal 78 | . . 64 14 Explosive 20 | . . 14 6 Electromagnetic 32 | . 8 24 . Robot Hit Streak 13 | . 6 13 1 Robot Miss Streak 6 | . 2 6 4 Penetration Max . | . . . . Secondary Targets 3 | . . 3 . Max Gunslinging Chain 1 | . . 1 . Shots Hit Robots 74 | . 11 58 5 Core Hits 74 | . 8 54 12 Critical Kills . | . . . . Critical Parts Destroyed 1 | . . 1 . Critical Strikes 2 | . . 2 . Burn 1 | . . 1 . Destroy 1 | . . 1 . Melee Attacks . | . . . . Impact . | . . . . Slashing . | . . . . Piercing . | . . . . Sneak Attacks . | . . . . Combat Hostiles . | . . . . Follow-up Attacks . | . . . . Damage Inflicted 2508 | . 263 1856 389 Guns 657 | . 128 529 . Cannons 407 | . . 286 121 Explosions 1409 | . 133 1008 268 Melee . | . . . . Ramming 35 | . 2 33 . Kinetic 160 | . 60 100 . Thermal 878 | . 133 624 121 Explosive 1223 | . . 955 268 Electromagnetic 212 | . 68 144 . Impact . | . . . . Slashing . | . . . . Piercing . | . . . . Highest Corruption . | . . . . Average Corruption . | . . . . Corruption Purged . | . . . . Corruption Blocked . | . . . . Overload Shots . | . . . . Overflow Damage 58 | . . 58 . Projectiles . | . . . . Explosions 58 | . . 58 . Melee . | . . . . Knockbacks . | . . . . Impact . | . . . . Kinetic . | . . . . Secondary . | . . . . Self-Inflicted Damage 153 | . . 153 . Shots 5 | . . 5 . Rammed . | . . . . Targets Rammed 10 | . 1 9 . Kicked 10 | . 1 9 . Crushed . | . . . . Highest Temperature 500 | . 18 449 500 Average Temperature 146 | . 11 132 306 Received Heat Transfer 105 | . 18 87 . Effects 6 | . . 5 1 Shutdowns 1 | . . 1 . Energy Bleed 2 | . . 2 . Interference 2 | . . 2 . Damage (minor) 1 | . . . 1 Siege Activations . | . . . . Martial Activations . | . . . . Shielding Activations . | . . . . Robots Disrupted . | . . . . Combat Hostiles . | . . . . Robots Corrupted . | . . . . Combat Hostiles . | . . . . Parts Fried . | . . . . Impact Corruptions . | . . . . Robots Melted . | . . . . Combat Hostiles . | . . . . Parts Melted 3 | . . 3 . Heat Transferred 1790 | . 150 1418 222 Parts Sabotaged . | . . . . Parts Stolen . | . . . . Parts Stripped . | . . . . Power Chain Reactions 3 | . 2 1 . Alert | -11 -10 -9 -9 ------- Run | Yrd Mat Mat Min Maximum Alert Level 2 | . . 2 . Low Security (%) 62 | 100 100 39 100 Level 1 25 | . . 40 . Level 2 12 | . . 20 . Level 3 . | . . . . Level 4 . | . . . . Level 5 . | . . . . High Security . | . . . . Max Security . | . . . . Peak Influence 440 | . 143 440 160 Initial 160 | . . 42 160 Average 174 | . 71 231 114 Influence Increases 1082 | . 153 885 44 Destroy 0b10 Robot/C 580 | . 100 480 . Destroy 0b10 Robot/NC 80 | . . 70 10 Destroy Leader 160 | . 30 130 . Disable Machine 60 | . 15 45 . Destroy Structure 157 | . 8 115 34 Lose Combat Pursuer 45 | . . 45 . Influence Decreases 1038 | . 50 575 413 Entered New Map 314 | . . 61 253 Time Decay 484 | . 50 334 100 Lost Part 90 | . . 30 60 Purge Threat 150 | . . 150 . Squads Dispatched 3 | . 2 1 . Investigation 1 | . 1 . . Extermination . | . . . . Reinforcement 2 | . 1 1 . Assault . | . . . . Garrison . | . . . . Intercept . | . . . . Searches Triggered . | . . . . Construction Impeded 1 | . . 1 . Haulers Reinforced . | . . . . Active Scanning Responses . | . . . . Cargo Convoy Interrupts . | . . . . Stealth | -11 -10 -9 -9 --------- Run | Yrd Mat Mat Min Distress Signals 4 | . . 4 . Communications Jammed . | . . . . Distress Signals . | . . . . Times Spotted 39 | . 7 28 4 Peak Tracking Total 5 | . 3 5 3 Tactical Retreats 2 | . . 2 . Traps | -11 -10 -9 -9 ------- Run | Yrd Mat Mat Min Traps Triggered 2 | . . 2 . Indirectly . | . . . . Trap Hack Attempts . | . . . . Triggered . | . . . . Disarmed 6 | . . 6 . Reprogrammed . | . . . . Reused . | . . . . Traps Extracted . | . . . . Installed . | . . . . Triggered . | . . . . Machines | -11 -10 -9 -9 ---------- Run | Yrd Mat Mat Min Machines Disabled 4 | . 1 3 . Max in Single Turn 2 | . 1 2 . Machines Repaired . | . . . . Machines Dismantled . | . . . . Machines Sabotaged . | . . . . Overloaded Fab Kills . | . . . . Hacking | -11 -10 -9 -9 --------- Run | Yrd Mat Mat Min Machines Accessed 7 | . 3 4 . Terminals 6 | . 2 4 . Fabricators . | . . . . Repair Stations . | . . . . Recycling Units 1 | . 1 . . Scanalyzers . | . . . . Garrison Access . | . . . . Total Hacks 15 | . 8 7 . Successful 9 | . 4 5 . Failed 6 | . 4 2 . Catastrophic 2 | . 2 . . Database Lockouts . | . . . . Manual . | . . . . Terminals 11 | . 4 7 . Fabricators . | . . . . Repair Stations . | . . . . Recycling Units 4 | . 4 . . Scanalyzers . | . . . . Garrison Access . | . . . . Terminal Hacks 7 | . 2 5 . Record 2 | . 1 1 . Alert Level 2 | . 1 1 . Unreport Threat 1 | . . 1 . Disarm Traps 1 | . . 1 . Dispatch Records 1 | . . 1 . Fabricator Hacks . | . . . . Repair Station Hacks . | . . . . Recycling Unit Hacks 2 | . 2 . . Recycle Component 1 | . 1 . . Process 1 | . 1 . . Scanalyzer . | . . . . Garrison Access Hacks . | . . . . Unauthorized Hacks . | . . . . Terminals . | . . . . Fabricators . | . . . . Repair Stations . | . . . . Recycling Units . | . . . . Scanalyzers . | . . . . Garrison Access . | . . . . Data Cores Recovered . | . . . . Used . | . . . . Hacking Detections 6 | . 3 3 . Full Trace Events 2 | . 2 . . Feedback Events . | . . . . Feedback Blocked . | . . . . Robot Schematics Acquired . | . . . . Robots Built . | . . . . Authchips . | . . . . Time . | . . . . Total Robot Build Rating . | . . . . Part Schematics Acquired . | . . . . Parts Built . | . . . . Authchips . | . . . . Time . | . . . . Total Part Build Rating . | . . . . Part Studies Acquired . | . . . . Parts Repaired . | . . . . Time . | . . . . Parts Recycled 1 | . 1 . . Recycled Matter 32 | . 32 . . Retrieved Matter . | . . . . Retrieved Components . | . . . . Parts Scanalyzed . | . . . . Part Schematics Acquired . | . . . . Parts Damaged . | . . . . Bothacking | -11 -10 -9 -9 ------------ Run | Yrd Mat Mat Min Used RIF Installer . | . . . . Robots Hacked . | . . . . Non-combat . | . . . . Combat . | . . . . Robot Hacks Applied . | . . . . Relay Couplers Released . | . . . . Fabnet Peak Effective % . | . . . . Robots Rewired . | . . . . Allies Hacked . | . . . . Hacks Repelled . | . . . . Allies | -11 -10 -9 -9 -------- Run | Yrd Mat Mat Min Total Allies . | . . . . Largest Group . | . . . . Highest-Rated Group . | . . . . Highest-Rated Ally . | . . . . Total Orders . | . . . . Ally Attacks . | . . . . Total Damage . | . . . . Kills . | . . . . Allies Corrupted . | . . . . Allies Melted . | . . . . Intel | -11 -10 -9 -9 ------- Run | Yrd Mat Mat Min Active Infowar (turns) . | . . . . Robot Analysis Total . | . . . . Derelict Logs Recovered 1 | . . . 1 Drone Launches . | . . . . Drone Recoveries . | . . . . Exploration | -11 -10 -9 -9 ------------- Run | Yrd Mat Mat Min Turns Passed 1187 | 75 161 742 209 Spaces Moved 580 | 54 110 319 97 Core 18 | 17 . . 1 Treads . | . . . . Legs 562 | 37 110 319 96 Wheels . | . . . . Hover . | . . . . Flight . | . . . . Fastest Speed 50 | 50 120 120 190 Average Speed 160 | 109 120 173 191 Slowest Speed 260 | 120 120 190 260 Overloaded Moves . | . . . . Propulsion Burnouts . | . . . . Robots Hopped . | . . . . Potential Cave-ins . | . . . . Cave-ins Triggered . | . . . . Exploration Rate (%) 23 | 4 22 35 31 Regions Visited 3 Branch Regions 1 Pre-discovered Areas . | . . . . Known Exits Taken . | . . . . Unknown Exits Taken 3 | 1 1 1 . Scrap Searched 1 | . . . 1 Spaces Dug . | . . . . Terrain Destroyed 178 | . 7 119 52 Melee . | . . . . Projectile 2 | . . 1 1 AOE 176 | . 7 118 51 Terrain Rammed . | . . . . Walls Destroyed . | . . . . Machines Disabled . | . . . . Actions | -11 -10 -9 -9 --------- Run | Yrd Mat Mat Min Total 707 | 69 123 411 104 Wait 16 | 3 . 13 . Move 577 | 53 109 318 97 Hop . | . . . . Pick Up 24 | 7 3 14 . Fast Attach . | . . . . Attach 12 | 5 2 5 . Detach . | . . . . Swap 9 | 1 . 8 . Drop 4 | . . 4 . Fire 55 | . 8 40 7 Melee . | . . . . Ram . | . . . . Kick 10 | . 1 9 . Crush . | . . . . Escape Stasis . | . . . . Rewire . | . . . . Trap . | . . . . Miscellaneous . | . . . . Route ------- -11/Scrapyard -10/Materials -9/Materials (discovered 2 exits: [*Min] / [*Sto]) -9/Mines History --------- Turn | Location | Event 13 | -11/Scrapyard | Discovered new exit (range 14) 76 | -11/Scrapyard | Entered Materials 233 | -10/Materials | Discovered new exit (range 5) 237 | -10/Materials | Entered another Materials area 237 | -9/Materials | Evolved 2 slots: Utility x1, Weapon x1 559 | -9/Materials | Build established: Gunner 586 | -9/Materials | Discovered new exit (range 15) 894 | -9/Materials | Discovered new exit (range 12) 979 | -9/Materials | Entered Mines 980 | -9/Mines | Assembled infested the area 981 | -9/Mines | Met a Derelict bent on vengeance 987 | -9/Mines | Learned Materials emergency access door positions 1179 | -9/Mines | Core integrity fell below 50% 1185 | -9/Mines | Core integrity fell below 20% 1188 | -9/Mines | Destroyed by D-53 Grenadier with Mini Grenade Launcher Last Messages --------------- K-01 Serf cleans the Plasma Injector. Searching scrap... Found 51 Matter. Found 33 Matter. K-01 Serf collects debris. T-07 Excavator destroyed. as-53804 destroyed. R-06 Scavenger destroyed. Aluminum Leg destroyed. The unstable cave ceiling collapses. T-07 Excavator destroyed. Imp. Ion Engine destroyed. The unstable cave ceiling collapses. Rocket Launcher destroyed. Aluminum Leg destroyed. as-95224 destroyed. Overheating: Med. Storage Unit damaged (-121). The unstable cave ceiling collapses. Adv. Beam Cannon destroyed. The unstable cave ceiling collapses. Map ----- +----------------------------------------------------+ | ?????????????#??????????# #????????????????? | | ????????????????????????# ###??????????????? | | ????????????????????????# ##?????????????? | | ????????????????????????# ##????????????? | | ????????????????????????## ##???????????? | | ????????????????????????## ##??????????? | | ????????????????????????# ## #??????? | | ???????????????########## ???? | | ?????????????# ??? | | ???????????????####### ### ??? | | ???????#?????????##### #?# ######## ???? | | ???????# ??????#?# #?# ##?????????#???? | | ???????# ##### ## ####?## #??????????????? | | ???????# ????####????#####?????? | | ???????# # * #???????????## #?????? | | ???????# %! #??????????## #?????? | | ???????# !dd ?????????## #?????? | | ???????# ????????## #?????? | | ???????# | #????????# ##????? | | ???????? ! * #????????# ####?? | | ??????????# ####???????# ### | | ???????????? # ##?????## # | | ????????????## #?##### | | ?????????????# ### | | ?????????????# # | | ?????????????# @ | | ?????????????# ## | | ?????????????## #### | | ??????????????# #??# | | ??????????????## ### #??# | | ???????????????###### #######?## ##??## | | ????????????????????## ##????????####?????## | | ?????????????????????####???????????????????? | | ????????????????????????????????????????????? | | ????????????????????????????????????????????? | | | | | | | | | | | | | | | | | | | | | | | | | | | | | | | +----------------------------------------------------+ Best States ------------- Heat Dissipation 28 Energy Generation 12 Energy Capacity 265 Matter Stores 500 Matter Capacity 500 Sight Range 16 Terrain Scan Density 10 Evasion (%) 55 Targeting Accuracy 5 Item Schematics ----------------- None Robot Schematics ------------------ None Fabricated ------------ Nothing Repaired ---------- Nothing Studied --------- None Alien Tech Used ----------------- None Achievements -------------- None Challenges ------------ None Game ------ Seed CatalystExplosiveRifle Manual? 0 Play Time 00:14:33 Cumulative 4.6 hours Start 2025.12.28 @ 21:46:20 End 2025.12.28 @ 21:59:56 Sessions 1 Manual Loads 0 Difficulty Rogue Special Mode None Game No. 14 Rogue 14 Adventurer 0 Explorer 0 Win Type - Total 0 Types 0/0/0/0/0/0/0/0/0/0 Lore% 6 Gallery% 10 Achievement% 11 Wizard Run 0 Options --------- Layout 1 ASCII 1 Keyboard 0 Movement Mouse Keybinds 0 Fullscreen 2 Font 32/SmallcapsGlow Map View 50x35 Zoom Use 0% Tactical HUD 0 Map Filters NONE Filters NONE Steam 1 RUN: 6492e6cf-9425-41c8-923f-c63aaf52c8c0